fUSD/lending_fUSD_20240210
["ID","MTS","AMOUNT","RATE_DAILY","PERIOD"]
[313686748,1707585047704,-2638.20054226,0.00023,2]
[313686749,1707585048198,-60902.02562045,0.00023,2]
[313686750,1707585094121,208.0,0.0002204,2]
[313686751,1707585104545,5586.37101032,0.00021775,2]
[313686752,1707585104568,7497.43898968,0.00021775,2]
[313686753,1707585203030,171.43,0.00017771,2]
[313686764,1707585267415,200.0,0.00021993,2]
[313686765,1707585396262,178.14,0.00021971,2]
[313686766,1707585454469,208.0,0.0002104,2]
[313686767,1707585475798,435.31,0.00020031,2]
[313686768,1707585501948,250.0,0.00021921,2]
[313686769,1707585578392,909.05191507,0.00021921,2]
[313686770,1707585596405,988.47542493,0.00021921,2]
[313686771,1707585611571,390.0,0.00021899,2]
[313686772,1707585614469,1952.87,0.00021918,2]
[313686773,1707585616745,411.05,0.00021932,2]
[313686774,1707585626959,164.1,0.0002192,2]
[313686775,1707585642220,10802.56,0.0002192,2]
[313686776,1707585666836,250.0,0.00021934,2]
[313686777,1707585702719,2045.5,0.00021995,2]
[313686778,1707585744260,672.0,0.00021964,2]
[313686779,1707585837214,177.47,0.00021954,2]
[313686780,1707585865307,150.0,0.00022,2]
[313686781,1707585865327,274.56,0.00022,2]
[313686782,1707585865346,20.86,0.00022,2]
[313686783,1707585907023,1651.49,0.00021951,2]
[313686784,1707585974373,431.76,0.00020066,2]
[313686785,1707586049139,150.0,0.00020075,2]
[313686786,1707586049162,109.31821795,0.00020075,2]
[313686787,1707586049213,150.0,0.00021637,2]
[313686788,1707586049233,304.19852659,0.00021637,2]
[313686789,1707586050053,150.0,0.00021191,7]
[313686790,1707586050073,150.0,0.00021191,7]
[313686791,1707586050092,150.0,0.00021191,7]
[313686792,1707586050112,297.56754154,0.00021191,7]
[313686793,1707586050132,721.90427281,0.00021191,7]
[313686794,1707586054603,180.92,0.00021879,10]
[313686795,1707586057742,267.66635624,0.00020066,2]
[313686796,1707586059222,150.0,0.00022,2]
[313686797,1707586069387,403.98004389,0.00019464,2]
[313686798,1707586084288,166.42749765,0.0002,2]
[313686799,1707586105248,205.52,0.00021645,2]
[313686800,1707586118598,150.0,0.00021645,2]
[313686801,1707586118619,126.44,0.00021645,2]
[313686806,1707586128195,150.0,0.00021775,2]
[313686807,1707586128216,13.67,0.00021775,2]
[313686808,1707586138072,150.0,0.00022,2]
[313686809,1707586144162,250.0,0.00021535,2]
[313686810,1707586147543,150.0,0.00022,2]
[313686814,1707586157291,175.02,0.00017201,2]
[313686818,1707586179475,150.0,0.00021918,2]
[313686819,1707586179495,100.0,0.00021918,2]
[313686820,1707586198459,395.50245846,0.0002,2]
[313686824,1707586219102,200.0,0.00021512,2]
[313686825,1707586231461,200.0,0.0002155,2]
[313686833,1707586232139,-631.9829174,0.0002204,2]
[313686834,1707586232148,-545.60787542,0.0002204,2]
[313686835,1707586232157,-261.48482609,0.00022041,2]
[313686836,1707586232166,-1933.00651145,0.00022041,2]
[313686838,1707586232354,-500.0,0.00022041,2]
[313686840,1707586232370,-450.0,0.00022041,2]
[313686844,1707586232394,-521.48943229,0.00022041,2]
[313686853,1707586238194,-238.82159089,0.00022041,2]
[313686854,1707586238204,-701.36979445,0.00022042,2]
[313686855,1707586238213,-922.80527199,0.00022042,2]
[313686856,1707586238223,-700.4784862,0.00022042,2]
[313686857,1707586238233,-300.0,0.00022043,2]
[313686858,1707586238242,-150.0,0.00022043,2]
[313686859,1707586238250,-280.70042105,0.00022043,2]
[313686860,1707586238259,-2436.55088515,0.00022044,2]
[313686874,1707586238833,-2359.0,0.00022044,2]
[313686876,1707586239006,-748.12112066,0.00022044,2]
[313686877,1707586239016,-2330.97805663,0.00022044,2]
[313686878,1707586239025,-4716.7166036,0.00022054,2]
[313686888,1707586240714,-882.08694273,0.00022054,2]
[313686889,1707586240769,-1165.9626469,0.00022054,2]
[313686890,1707586240826,-8476.01208173,0.00022054,2]
[313686891,1707586240836,-2430.47212074,0.00022055,2]
[313686892,1707586240846,-624.62482278,0.00022055,2]
[313686893,1707586240856,-328.0,0.00022056,2]
[313686894,1707586240865,-8516.24,0.00022056,2]
[313686895,1707586240876,-265.83776205,0.00022083,2]
[313686896,1707586240886,-281.28534164,0.00022083,2]
[313686897,1707586240896,-248.93581909,0.00022083,2]
[313686898,1707586240906,-155.65311274,0.00022083,2]
[313686899,1707586240915,-150.99,0.00022083,2]
[313686900,1707586240923,-163.67,0.00022154,2]
[313686901,1707586240932,-157.9054,0.00022208,2]
[313686902,1707586240942,-160.41874892,0.00022304,2]
[313686903,1707586240950,-501.42306486,0.00022304,2]
[313686904,1707586240959,-2519.1287398,0.00022305,2]
[313686905,1707586240969,-156.62899957,0.00022305,2]
[313686906,1707586240978,-33950.53662873,0.00022305,2]
[313686926,1707586243162,-574.08241182,0.00022305,2]
[313686928,1707586243174,-594.743224,0.00022305,2]
[313686932,1707586243198,-1201089.76979823,0.00022305,2]
[313686936,1707586243227,-470.02665923,0.00022305,2]
[313686938,1707586243260,-3864.91880129,0.00022305,2]
[313686939,1707586243308,-332355.40131657,0.00022305,2]
[313686940,1707586243365,-529.73999,0.00022305,2]
[313687036,1707586254806,150.0,0.00020073,5]
[313687037,1707586254827,150.0,0.00020073,5]
[313687038,1707586254849,150.0,0.00020073,5]
[313687039,1707586254870,150.0,0.00020073,5]
[313687040,1707586254890,150.0,0.00020073,5]
[313687041,1707586254910,150.0,0.00020073,5]
[313687042,1707586254932,150.0,0.00020073,5]
[313687043,1707586254954,150.0,0.00020073,5]
[313687044,1707586254974,150.0,0.00020073,5]
[313687045,1707586254996,150.0,0.00020073,5]
[313687046,1707586255019,5134.17572719,0.00020073,5]
[313687047,1707586255040,2200.1216839,0.00020073,5]
[313687048,1707586257890,420.00908622,0.0001985,2]
[313687049,1707586264792,150.0,0.00022,2]
[313687050,1707586264813,150.0,0.00022,2]
[313687051,1707586267475,150.0,0.0002,2]
[313687052,1707586267496,152.68,0.0002,2]
[313687053,1707586267515,201.04273351,0.0002,2]
[313687054,1707586268578,462.4,0.00021785,2]
[313687055,1707586277451,624.8746359,0.0002141,2]
[313687056,1707586290027,315.76519519,0.00020072,2]
[313687057,1707586291429,211.35976113,0.0002141,2]
[313687059,1707586368002,189.57,0.00021416,2]
[313687060,1707586375024,2153.28,0.00021401,2]
[313687061,1707586389413,637.62,0.00021341,2]
[313687062,1707586401256,500.0,0.00021312,2]
[313687063,1707586415450,200.0,0.00021339,2]
[313687064,1707586445285,23900.0,0.00021308,2]
[313687065,1707586474646,-503.82903438,0.00022057,2]
[313687066,1707586474666,-96.17096562,0.00022058,2]
[313687067,1707586500036,200.0,0.00021314,2]
[313687074,1707586509137,158.76597071,0.00021957,2]
[313687075,1707586509437,181.8,0.00021314,10]
[313687076,1707586510072,156.99,0.00021314,2]
[313687077,1707586536152,8054.92,0.00021918,2]
[313687078,1707586554662,1500.0,0.00021918,7]
[313687079,1707586563461,193.78,0.00021305,2]
[313687080,1707586577706,179.1,0.00021833,2]
[313687081,1707586596537,-155.0,0.00022045,2]
[313687082,1707586596559,-1041.94724916,0.00022046,2]
[313687083,1707586596580,-497.72857645,0.00022046,2]
[313687084,1707586596601,-3159.96878301,0.00022046,2]
[313687085,1707586596622,-315.79172848,0.00022047,2]
[313687086,1707586596642,-6470.31799292,0.00022047,2]
[313687087,1707586596663,-4541.91667027,0.00022047,2]
[313687088,1707586596684,-373.06431658,0.00022048,2]
[313687089,1707586596704,-4510.25546344,0.00022048,2]
[313687090,1707586596724,-155.0,0.00022049,2]
[313687091,1707586596744,-155.0,0.00022049,2]
[313687092,1707586596764,-1825.36879353,0.00022049,2]
[313687093,1707586599911,549.12,0.00019361,2]
[313687094,1707586600622,549.12,0.00021625,2]
[313687095,1707586604516,3643.31753463,0.00022049,2]
[313687096,1707586611837,4658.46646849,0.00022049,2]
[313687097,1707586615674,250.0,0.00021399,2]
[313687098,1707586617765,150.0,0.00021399,2]
[313687099,1707586625317,3077.33,0.00021399,2]
[313687100,1707586625530,1771.8,0.00021399,2]
[313687101,1707586639900,2000.0,0.00021375,2]
[313687102,1707586647085,165.37,0.00021536,2]
[313687103,1707586647512,165.37,0.00021595,2]
[313687104,1707586647730,165.37,0.00021654,2]
[313687105,1707586648183,165.37,0.00021713,2]
[313687106,1707586648255,165.37,0.00021772,2]
[313687107,1707586648393,165.37,0.00021831,2]
[313687108,1707586648601,165.37,0.0002189,2]
[313687109,1707586649006,165.37,0.00021949,2]
[313687110,1707586649237,165.37,0.00022008,2]
[313687111,1707586653115,175.07,0.00021384,2]
[313687112,1707586672109,1521.14066127,0.00022049,2]
[313687113,1707586673762,200.0,0.00021287,2]
[313687114,1707586683678,157.67,0.00021926,2]
[313687115,1707586688247,250.0,0.00021918,2]
[313687116,1707586692704,331.84,0.00021278,2]
[313687117,1707586700452,1337.54,0.00021448,2]
[313687118,1707586742363,630.08,0.00021278,2]
[313687119,1707586748618,1521.14066127,0.00022049,2]
[313687120,1707586800446,200.0,0.0002128,2]
[313687121,1707586826601,200.0,0.0002129,2]
[313687122,1707586833743,207.0,0.0002191,2]
[313687123,1707586870206,158.76597068,0.00021967,2]
[313687124,1707586879893,1794.4,0.00021298,2]
[313687125,1707586980019,151.65,0.00021326,2]
[313687127,1707587025247,181.81,0.00021293,10]
[313687128,1707587072839,494.2,0.00019374,2]
[313687129,1707587073058,494.2,0.00021638,2]
[313687130,1707587078152,385.29,0.00021292,2]
[313687131,1707587111093,151.58,0.00021521,2]
[313687132,1707587111516,151.58,0.00021623,2]
[313687133,1707587111742,151.58,0.00021725,2]
[313687134,1707587112410,151.58,0.00021827,2]
[313687135,1707587112491,151.58,0.00021929,2]
[313687136,1707587112796,151.58,0.00022031,2]
[313687137,1707587141174,-1311.0,0.0002928,120]
[313687138,1707587141203,-1311.0,0.0003029,120]
[313687139,1707587141229,-151.0,0.00031086,120]
[313687140,1707587141255,-151.0,0.0003172,30]
[313687141,1707587141278,-1311.0,0.0003198,120]
[313687142,1707587141301,-861.0,0.0003234,30]
[313687143,1707587141324,-175.85939097,0.00032877,30]
[313687144,1707587141346,-150.0,0.00032877,30]
[313687145,1707587141368,-1311.0,0.0003298,120]
[313687146,1707587141391,-600.0,0.00033,34]
[313687147,1707587141414,-150.0,0.00033369,30]
[313687148,1707587141439,-1311.0,0.0003398,120]
[313687149,1707587141462,-600.0,0.00034,35]
[313687150,1707587141486,-1311.0,0.0003498,120]
[313687151,1707587141508,-300.0,0.00035,36]
[313687152,1707587141538,-191.83244499,0.00035613,30]
[313687153,1707587141560,-1311.0,0.0003598,120]
[313687154,1707587141586,-300.0,0.00036,37]
[313687155,1707587141610,-1115.01998597,0.00036301,30]
[313687156,1707587141633,-157.17,0.00036438,90]
[313687157,1707587141661,-1311.0,0.0003698,120]
[313687158,1707587141685,-20000.0,0.00037,60]
[313687159,1707587141707,-300.0,0.00037,38]
[313687160,1707587141731,-5104.41,0.000375,35]
[313687161,1707587141757,-1311.0,0.0003798,120]
[313687162,1707587141780,-20000.0,0.00038,30]
[313687163,1707587141802,-300.0,0.00038,39]
[313687164,1707587141825,-500.0,0.00038356,30]
[313687165,1707587141848,-500.0,0.00038356,30]
[313687166,1707587141870,-500.0,0.00038356,30]
[313687167,1707587141892,-565.37664979,0.00038356,30]
[313687168,1707587141915,-511.04583735,0.00038356,30]
[313687169,1707587141937,-508.73962755,0.00038356,30]
[313687170,1707587141960,-500.0,0.00038356,30]
[313687171,1707587141982,-508.17602279,0.00038356,30]
[313687172,1707587142004,-501.8597257,0.00038356,30]
[313687173,1707587142025,-505.94658282,0.00038356,30]
[313687174,1707587142048,-500.0,0.00038356,30]
[313687175,1707587142070,-500.0,0.00038356,30]
[313687176,1707587142093,-500.0,0.00038356,30]
[313687177,1707587142115,-516.73410525,0.00038356,30]
[313687178,1707587142137,-505.63509471,0.00038356,30]
[313687179,1707587142159,-500.0,0.00038356,30]
[313687180,1707587142183,-500.0,0.00038356,30]
[313687181,1707587142206,-500.0,0.00038356,30]
[313687182,1707587142391,-500.0,0.00038356,30]
[313687183,1707587142414,-500.0,0.00038356,30]
[313687184,1707587142437,-500.0,0.00038356,30]
[313687185,1707587142459,-500.0,0.00038356,30]
[313687186,1707587142481,-570.00976586,0.00038356,30]
[313687187,1707587142503,-500.0,0.00038356,30]
[313687188,1707587142526,-500.0,0.00038356,30]
[313687189,1707587142548,-500.0,0.00038356,30]
[313687190,1707587142570,-500.0,0.00038356,30]
[313687191,1707587142594,-500.0,0.00038356,30]
[313687192,1707587142615,-706.28809454,0.00038356,30]
[313687193,1707587142637,-454.72388634,0.00038356,30]
[313687194,1707587142658,-500.0,0.00038356,30]
[313687195,1707587142681,-513.14686667,0.00038356,30]
[313687196,1707587142703,-500.0,0.00038356,30]
[313687197,1707587142725,-504.8,0.00038356,30]
[313687198,1707587142747,-500.0,0.00038356,30]
[313687199,1707587142769,-500.0,0.00038356,30]
[313687200,1707587142791,-500.0,0.00038356,30]
[313687201,1707587142812,-652.52,0.00038356,30]
[313687202,1707587142833,-500.0,0.00038356,30]
[313687203,1707587142855,-500.0,0.00038356,30]
[313687204,1707587142877,-500.0,0.00038356,30]
[313687205,1707587142898,-500.0,0.00038356,30]
[313687206,1707587142925,-500.0,0.00038356,30]
[313687207,1707587142946,-561.48,0.00038356,30]
[313687208,1707587142968,-1033.9,0.00038356,30]
[313687209,1707587142991,-500.0,0.00038356,30]
[313687210,1707587143014,-500.0,0.00038356,30]
[313687211,1707587143039,-500.0,0.00038356,30]
[313687212,1707587143061,-154.67846374,0.00038356,30]
[313687213,1707587143083,-518.72,0.00038356,30]
[313687214,1707587143105,-500.0,0.00038356,30]
[313687215,1707587143127,-500.0,0.00038356,30]
[313687216,1707587143150,-587.82,0.00038356,30]
[313687217,1707587143173,-517.57,0.00038356,30]
[313687218,1707587143194,-509.78279966,0.00038356,30]
[313687219,1707587143216,-861.1,0.00038356,30]
[313687220,1707587143237,-500.0,0.00038356,30]
[313687221,1707587143259,-500.0,0.00038356,30]
[313687222,1707587143281,-500.0,0.00038356,30]
[313687223,1707587143314,-500.0,0.00038356,30]
[313687224,1707587143356,-506.38632214,0.00038356,30]
[313687225,1707587143396,-500.0,0.00038356,30]
[313687226,1707587143434,-843.13,0.00038356,30]
[313687227,1707587143478,-500.0,0.00038356,30]
[313687228,1707587143522,-500.0,0.00038356,30]
[313687229,1707587143554,-495.94421057,0.00038356,30]
[313687230,1707587143587,-500.0,0.00038356,30]
[313687231,1707587143623,-500.0,0.00038356,30]
[313687232,1707587143656,-539.79,0.00038356,30]
[313687233,1707587143691,-500.0,0.00038356,30]
[313687234,1707587143723,-544.39411301,0.00038356,30]
[313687235,1707587143759,-500.0,0.00038356,30]
[313687236,1707587143792,-500.0,0.00038356,30]
[313687237,1707587143824,-500.0,0.00038356,30]
[313687238,1707587143857,-653.82,0.00038356,30]
[313687239,1707587143890,-540.63,0.00038356,30]
[313687240,1707587143925,-741.12,0.00038356,30]
[313687241,1707587143957,-500.0,0.00038356,30]
[313687242,1707587143990,-500.0,0.00038356,30]
[313687243,1707587144026,-630.87,0.00038356,30]
[313687244,1707587144060,-500.0,0.00038356,30]
[313687245,1707587144095,-500.0,0.00038356,30]
[313687246,1707587144128,-500.0,0.00038356,30]
[313687247,1707587144163,-500.0,0.00038356,30]
[313687248,1707587144197,-500.0,0.00038356,30]
[313687249,1707587144231,-500.0,0.00038356,30]
[313687250,1707587144265,-500.0,0.00038356,30]
[313687251,1707587144300,-500.0,0.00038356,30]
[313687252,1707587144335,-500.0,0.00038356,30]
[313687253,1707587144369,-500.0,0.00038356,30]
[313687254,1707587144402,-500.0,0.00038356,30]
[313687255,1707587144436,-500.0,0.00038356,30]
[313687256,1707587144469,-500.0,0.00038356,30]
[313687257,1707587144502,-501.86208133,0.00038356,30]
[313687258,1707587144535,-514.12102228,0.00038356,30]
[313687259,1707587144569,-500.0,0.00038356,30]
[313687260,1707587144607,-507.43476311,0.00038356,30]
[313687261,1707587144629,-500.0,0.00038356,30]
[313687262,1707587144652,-500.0,0.00038356,30]
[313687263,1707587144676,-500.0,0.00038356,30]
[313687264,1707587144980,-500.0,0.00038356,30]
[313687265,1707587145036,-500.0,0.00038356,30]
[313687266,1707587145058,-500.0,0.00038356,30]
[313687267,1707587145080,-500.0,0.00038356,30]
[313687268,1707587145102,-500.0,0.00038356,30]
[313687269,1707587145125,-517.76807246,0.00038356,30]
[313687270,1707587145147,-500.0,0.00038356,30]
[313687271,1707587145169,-641.35,0.00038356,30]
[313687272,1707587145192,-500.0,0.00038356,30]
[313687273,1707587145214,-512.01361499,0.00038356,30]
[313687274,1707587145235,-594.09,0.00038356,30]
[313687275,1707587145257,-500.0,0.00038356,30]
[313687276,1707587145278,-500.0,0.00038356,30]
[313687277,1707587145301,-500.0,0.00038356,30]
[313687278,1707587145322,-500.0,0.00038356,30]
[313687279,1707587145342,-500.0,0.00038356,30]
[313687280,1707587145363,-500.0,0.00038356,30]
[313687281,1707587145385,-500.0,0.00038356,30]
[313687282,1707587145406,-500.0,0.00038356,30]
[313687283,1707587145429,-500.0,0.00038356,30]
[313687284,1707587145451,-500.0,0.00038356,30]
[313687285,1707587145473,-500.0,0.00038356,30]
[313687286,1707587145495,-500.0,0.00038356,30]
[313687287,1707587145517,-500.0,0.00038356,30]
[313687288,1707587145538,-500.0,0.00038356,30]
[313687289,1707587145559,-500.0,0.00038356,30]
[313687290,1707587145582,-500.0,0.00038356,30]
[313687291,1707587145603,-500.0,0.00038356,30]
[313687292,1707587145624,-500.0,0.00038356,30]
[313687293,1707587145646,-500.0,0.00038356,30]
[313687294,1707587145670,-531.35,0.00038356,30]
[313687295,1707587145692,-500.0,0.00038356,30]
[313687296,1707587145718,-500.0,0.00038356,30]
[313687297,1707587145739,-500.0,0.00038356,30]
[313687298,1707587145761,-500.0,0.00038356,30]
[313687299,1707587145783,-500.0,0.00038356,30]
[313687300,1707587145806,-500.0,0.00038356,30]
[313687301,1707587145827,-500.0,0.00038356,30]
[313687302,1707587145850,-504.79707469,0.00038356,30]
[313687303,1707587145872,-500.0,0.00038356,30]
[313687304,1707587145894,-500.0,0.00038356,30]
[313687305,1707587145916,-500.0,0.00038356,30]
[313687306,1707587145938,-500.0,0.00038356,30]
[313687307,1707587145960,-500.0,0.00038356,30]
[313687308,1707587145982,-507.56428303,0.00038356,30]
[313687309,1707587146003,-505.42674171,0.00038356,30]
[313687310,1707587146025,-500.0,0.00038356,30]
[313687311,1707587146047,-490.46106567,0.00038356,30]
[313687312,1707587146069,-670.38,0.00038356,30]
[313687313,1707587146091,-500.0,0.00038356,30]
[313687314,1707587146113,-500.0,0.00038356,30]
[313687315,1707587146136,-500.0,0.00038356,30]
[313687316,1707587146158,-415.55942046,0.00038356,30]
[313687317,1707587146180,-505.72487618,0.00038356,30]
[313687318,1707587146202,-501.65,0.00038356,30]
[313687319,1707587146224,-816.25,0.00038356,30]
[313687320,1707587146245,-500.0,0.00038356,30]
[313687321,1707587146266,-500.0,0.00038356,30]
[313687322,1707587146289,-500.0,0.00038356,30]
[313687323,1707587146311,-530.59,0.00038356,30]
[313687324,1707587146333,-205.95707774,0.00038356,30]
[313687325,1707587146354,-542.069128,0.00038356,30]
[313687326,1707587146376,-576.52467994,0.00038356,30]
[313687327,1707587146397,-500.0,0.00038356,30]
[313687328,1707587146419,-500.0,0.00038356,30]
[313687329,1707587146441,-500.0,0.00038356,30]
[313687330,1707587146462,-500.0,0.00038356,30]
[313687331,1707587146484,-500.0,0.00038356,30]
[313687332,1707587146505,-500.0,0.00038356,30]
[313687333,1707587146527,-500.0,0.00038356,30]
[313687334,1707587146549,-500.0,0.00038356,30]
[313687335,1707587146571,-500.0,0.00038356,30]
[313687336,1707587146595,-500.0,0.00038356,30]
[313687337,1707587146618,-500.0,0.00038356,30]
[313687338,1707587146640,-500.0,0.00038356,30]
[313687339,1707587146662,-512.75,0.00038356,30]
[313687340,1707587146684,-500.0,0.00038356,30]
[313687341,1707587146706,-693.12,0.00038356,30]
[313687342,1707587146866,-500.0,0.00038356,30]
[313687343,1707587146888,-500.0,0.00038356,30]
[313687344,1707587146910,-638.48,0.00038356,30]
[313687345,1707587146932,-500.0,0.00038356,30]
[313687346,1707587146954,-500.0,0.00038356,30]
[313687347,1707587146976,-500.0,0.00038356,30]
[313687348,1707587146998,-500.0,0.00038356,30]
[313687349,1707587147021,-500.0,0.00038356,30]
[313687350,1707587147043,-594.51200924,0.00038356,30]
[313687351,1707587147065,-500.0,0.00038356,30]
[313687352,1707587147088,-500.0,0.00038356,30]
[313687353,1707587147110,-500.0,0.00038356,30]
[313687354,1707587147132,-1084.73,0.00038356,30]
[313687355,1707587147155,-500.0,0.00038356,30]
[313687356,1707587147177,-500.0,0.00038356,30]
[313687357,1707587147200,-502.64791454,0.00038356,30]
[313687358,1707587147222,-500.0,0.00038356,30]
[313687359,1707587147247,-500.0,0.00038356,30]
[313687360,1707587147269,-500.0,0.00038356,30]
[313687361,1707587147291,-408.95770218,0.00038356,30]
[313687362,1707587147313,-500.0,0.00038356,30]
[313687363,1707587147334,-500.0,0.00038356,30]
[313687364,1707587147355,-500.0,0.00038356,30]
[313687365,1707587147378,-538.43,0.00038356,30]
[313687366,1707587147399,-500.0,0.00038356,30]
[313687367,1707587147421,-666.78,0.00038356,30]
[313687368,1707587147443,-500.0,0.00038356,30]
[313687369,1707587147465,-542.98,0.00038356,30]
[313687370,1707587147486,-604.53203407,0.00038356,30]
[313687371,1707587147508,-500.0,0.00038356,30]
[313687372,1707587147531,-500.0,0.00038356,30]
[313687373,1707587147552,-578.57219692,0.00038356,30]
[313687374,1707587147576,-500.0,0.00038356,30]
[313687375,1707587147598,-538.79,0.00038356,30]
[313687376,1707587147620,-500.0,0.00038356,30]
[313687377,1707587147642,-552.33,0.00038356,30]
[313687378,1707587147665,-500.0,0.00038356,30]
[313687379,1707587147688,-500.0,0.00038356,30]
[313687380,1707587147709,-500.0,0.00038356,30]
[313687381,1707587147731,-500.0,0.00038356,30]
[313687382,1707587147753,-500.0,0.00038356,30]
[313687383,1707587147774,-548.56806042,0.00038356,30]
[313687384,1707587147796,-500.0,0.00038356,30]
[313687385,1707587147817,-609.14,0.00038356,30]
[313687386,1707587147843,-500.0,0.00038356,30]
[313687387,1707587147865,-500.0,0.00038356,30]
[313687388,1707587147887,-500.0,0.00038356,30]
[313687389,1707587147908,-500.0,0.00038356,30]
[313687390,1707587147930,-500.0,0.00038356,30]
[313687391,1707587147951,-500.0,0.00038356,30]
[313687392,1707587147973,-500.0,0.00038356,30]
[313687393,1707587147994,-500.0,0.00038356,30]
[313687394,1707587148017,-500.0,0.00038356,30]
[313687395,1707587148038,-500.0,0.00038356,30]
[313687396,1707587148060,-500.0,0.00038356,30]
[313687397,1707587148083,-500.0,0.00038356,30]
[313687398,1707587148105,-500.0,0.00038356,30]
[313687399,1707587148127,-500.0,0.00038356,30]
[313687400,1707587148149,-500.0,0.00038356,30]
[313687401,1707587148172,-500.0,0.00038356,30]
[313687402,1707587148193,-500.0,0.00038356,30]
[313687403,1707587148216,-500.0,0.00038356,30]
[313687404,1707587148237,-503.72053597,0.00038356,30]
[313687405,1707587148259,-500.0,0.00038356,30]
[313687406,1707587148281,-500.0,0.00038356,30]
[313687407,1707587148303,-500.0,0.00038356,30]
[313687408,1707587148325,-700.22,0.00038356,30]
[313687409,1707587148347,-500.0,0.00038356,30]
[313687410,1707587148368,-500.0,0.00038356,30]
[313687411,1707587148388,-500.0,0.00038356,30]
[313687412,1707587148410,-500.0,0.00038356,30]
[313687413,1707587148432,-538.31107846,0.00038356,30]
[313687414,1707587148453,-349.82480031,0.00038356,30]
[313687415,1707587148475,-650.62,0.00038356,30]
[313687416,1707587148497,-500.62,0.00038356,30]
[313687417,1707587148518,-520.41774418,0.00038356,30]
[313687418,1707587148540,-500.0,0.00038356,30]
[313687419,1707587148561,-500.0,0.00038356,30]
[313687420,1707587148589,-500.0,0.00038356,30]
[313687421,1707587148611,-500.0,0.00038356,30]
[313687422,1707587148634,-500.0,0.00038356,30]
[313687423,1707587148655,-500.0,0.00038356,30]
[313687424,1707587148678,-500.0,0.00038356,30]
[313687425,1707587148700,-500.0,0.00038356,30]
[313687426,1707587148722,-500.0,0.00038356,30]
[313687427,1707587148744,-500.0,0.00038356,30]
[313687428,1707587148766,-500.0,0.00038356,30]
[313687429,1707587148787,-643.42234499,0.00038356,30]
[313687430,1707587148809,-500.0,0.00038356,30]
[313687431,1707587148831,-500.0,0.00038356,30]
[313687432,1707587148852,-500.0,0.00038356,30]
[313687433,1707587148874,-500.0,0.00038356,30]
[313687434,1707587148895,-500.0,0.00038356,30]
[313687435,1707587148914,-500.0,0.00038356,30]
[313687436,1707587148935,-500.0,0.00038356,30]
[313687437,1707587148957,-500.0,0.00038356,30]
[313687438,1707587148979,-500.0,0.00038356,30]
[313687439,1707587149000,-500.0,0.00038356,30]
[313687440,1707587149021,-743.57,0.00038356,30]
[313687441,1707587149042,-500.0,0.00038356,30]
[313687442,1707587149065,-500.0,0.00038356,30]
[313687443,1707587149086,-500.0,0.00038356,30]